FIN.POSTING DATE,FIN.ACCOUNTING CODE 02 VALUE,FIN.ACCOUNTING CODE 02 DESCRIPTION,MCH.MERCHANT CATEGORY CODE (MCC),MCH.MERCHANT NAME - ORIGINAL,MCH.MCC DESCRIPTION,FIN.TRANSACTION AMOUNT
23/11/2023,10541,COVENTRY EXTENDED LEARNING CENTRE,5411,ASDA GROCERIES ONLINE,"GROCERY STORES, SUPERMARKETS",51.55
23/11/2023,11513,PROFESSIONAL SUPPORT SERVICE,5999,AMZNMKTPLACE,MISCELLANEOUS AND SPECIALTY RETAIL STORES,66.89
23/11/2023,11507,CARE LEAVERS,5621,NEW LOOK,WOMEN'S READY TO WEAR STORES,77.98
23/11/2023,11513,PROFESSIONAL SUPPORT SERVICE,5999,AMZNMKTPLACE,MISCELLANEOUS AND SPECIALTY RETAIL STORES,47.68
23/11/2023,10676,HOUSING AND HOMELESSNESS,5999,AMZNMKTPLACE,MISCELLANEOUS AND SPECIALTY RETAIL STORES,82.56
23/11/2023,10676,HOUSING AND HOMELESSNESS,5999,AMZNMKTPLACE,MISCELLANEOUS AND SPECIALTY RETAIL STORES,103.20
22/11/2023,11507,CARE LEAVERS,5200,B & Q 1052,HOME SUPPLY WAREHOUSE STORES,90.80
22/11/2023,11879,IPS LD MAURICE EDELMAN HOUSE,5811,ARTHURBRETT.CO.UK,CATERERS,103.63
22/11/2023,11507,CARE LEAVERS,5211,SCREWFIX DIR LTD,"BUILDING MATERIALS, LUMBER STORES",153.99
22/11/2023,11879,IPS LD MAURICE EDELMAN HOUSE,5811,ARTHURBRETT.CO.UK,CATERERS,74.34
22/11/2023,11995,IPS HWC HARRY CAPLAN,5811,ARTHURBRETT.CO.UK,CATERERS,43.48
22/11/2023,11995,IPS HWC HARRY CAPLAN,5811,ARTHURBRETT.CO.UK,CATERERS,62.03
22/11/2023,10541,COVENTRY EXTENDED LEARNING CENTRE,5411,ASDA GROCERIES ONLINE,"GROCERY STORES, SUPERMARKETS",53.20
22/11/2023,11507,CARE LEAVERS,5712,DUNELM SOFTFURNISHINGS,"EQUIP, FURNITURE, HOME FURNSHNGS STRS (EXCPT APPL)",255.95
22/11/2023,10541,COVENTRY EXTENDED LEARNING CENTRE,5411,ASDA GROCERIES ONLINE,"GROCERY STORES, SUPERMARKETS",-5.05
22/11/2023,10541,COVENTRY EXTENDED LEARNING CENTRE,5411,ASDA GROCERIES ONLINE,"GROCERY STORES, SUPERMARKETS",5.00
22/11/2023,11879,IPS LD MAURICE EDELMAN HOUSE,5811,ARTHURBRETT.CO.UK,CATERERS,82.22
21/11/2023,11995,IPS HWC HARRY CAPLAN,5811,BRAKE BROS LIMITED,CATERERS,198.19
21/11/2023,10541,COVENTRY EXTENDED LEARNING CENTRE,5411,ASDA GROCERIES ONLINE,"GROCERY STORES, SUPERMARKETS",-9.25
21/11/2023,10541,COVENTRY EXTENDED LEARNING CENTRE,5411,ASDA GROCERIES ONLINE,"GROCERY STORES, SUPERMARKETS",185.12
21/11/2023,11507,CARE LEAVERS,5655,JD SPORTS FASHION PLC,"SPORTS APPAREL, RIDING APPAREL STORES",124.00
21/11/2023,11932,LAC THROUGHCARE TEAM,9402,POST OFFICE COUNTER,POSTAL SERVICES-GOVERNMENT ONLY,7.35
21/11/2023,10333,14-16 ALTERNATIVE CURRICULUM,5968,AMAZON PRIME HI4XU8124,DIRECT MARKETING-CONTINUITY/SUBSCRIPTION MERCHANTS,8.99
20/11/2023,11135,YOUTH OFFENDING SERVICE,5814,MCDONALDS,FAST FOOD RESTAURANTS,16.81
20/11/2023,11166,SOUTH FAMILY HUB,5411,ALDI 42 772,"GROCERY STORES, SUPERMARKETS",10.25
20/11/2023,11507,CARE LEAVERS,5411,TESCO STORES 6135,"GROCERY STORES, SUPERMARKETS",24.25
20/11/2023,11507,CARE LEAVERS,5712,IKEA LTD SHOP ONLINE,"EQUIP, FURNITURE, HOME FURNSHNGS STRS (EXCPT APPL)",312.00
20/11/2023,11507,CARE LEAVERS,5814,JUST EAT,FAST FOOD RESTAURANTS,28.62
17/11/2023,11135,YOUTH OFFENDING SERVICE,5411,ASDA STORES 4602,"GROCERY STORES, SUPERMARKETS",47.70
17/11/2023,11995,IPS HWC HARRY CAPLAN,5811,BRAKE BROS LIMITED,CATERERS,-7.61
17/11/2023,11103,RESIDENTIAL - BROAD LANE,5999,AMZNMKTPLACE,MISCELLANEOUS AND SPECIALTY RETAIL STORES,26.99
17/11/2023,11507,CARE LEAVERS,5812,NANDOS.CO.UK,"EATING PLACES, RESTAURANTS",34.10
17/11/2023,11995,IPS HWC HARRY CAPLAN,5811,BRAKE BROS LIMITED,CATERERS,-7.61
17/11/2023,11928,COMMUNITY SUPPORT GRANTS,5999,AMZNMKTPLACE,MISCELLANEOUS AND SPECIALTY RETAIL STORES,-48.99
16/11/2023,11507,CARE LEAVERS,5200,B & Q 1052,HOME SUPPLY WAREHOUSE STORES,323.13
16/11/2023,11103,RESIDENTIAL - BROAD LANE,5815,DAZN LIMITED,DIGITAL GOODS AUDIOVISUAL MEDIA,9.99
16/11/2023,11995,IPS HWC HARRY CAPLAN,5422,WWW.MIDLANDFOODS.CO.UK,"FREEZER, LOCKER MEAT PROVISIONERS",60.49
16/11/2023,11687,RESIDENTIAL - BROAD PARK HOUSE,8299,TWINKL,SCHOOLS & EDUCATIONAL SVC-NOT ELSEWHERE CLASSIFIED,5.29
16/11/2023,11507,CARE LEAVERS,5691,H M,MEN'S AND WOMEN'S CLOTHING STORES,55.98
16/11/2023,11995,IPS HWC HARRY CAPLAN,5422,WWW.MIDLANDFOODS.CO.UK,"FREEZER, LOCKER MEAT PROVISIONERS",48.90
16/11/2023,11995,IPS HWC HARRY CAPLAN,5422,WWW.MIDLANDFOODS.CO.UK,"FREEZER, LOCKER MEAT PROVISIONERS",52.47
16/11/2023,11995,IPS HWC HARRY CAPLAN,5422,WWW.MIDLANDFOODS.CO.UK,"FREEZER, LOCKER MEAT PROVISIONERS",54.36
16/11/2023,11995,IPS HWC HARRY CAPLAN,5422,WWW.MIDLANDFOODS.CO.UK,"FREEZER, LOCKER MEAT PROVISIONERS",58.14
16/11/2023,11995,IPS HWC HARRY CAPLAN,5422,WWW.MIDLANDFOODS.CO.UK,"FREEZER, LOCKER MEAT PROVISIONERS",80.08
16/11/2023,11507,CARE LEAVERS,5969,AMAZON.CO.UK HB6Y76KT4,DIRECT MARKETING-OTHER DIRECT MARKETERS/NOT ELSEW.,139.65
15/11/2023,10541,COVENTRY EXTENDED LEARNING CENTRE,5411,ASDA GROCERIES ONLINE,"GROCERY STORES, SUPERMARKETS",-3.20
15/11/2023,11507,CARE LEAVERS,5732,CURRYS LOUGHBOROUGH,ELECTRONIC SALES,500.00
15/11/2023,11507,CARE LEAVERS,5200,B & Q 1052,HOME SUPPLY WAREHOUSE STORES,30.75
15/11/2023,10541,COVENTRY EXTENDED LEARNING CENTRE,5411,ASDA GROCERIES ONLINE,"GROCERY STORES, SUPERMARKETS",47.50
15/11/2023,11507,CARE LEAVERS,5211,B&Q MARKETPLACE,"BUILDING MATERIALS, LUMBER STORES",96.99
15/11/2023,11135,YOUTH OFFENDING SERVICE,5814,COVENTRY ARENA SHOPPIN,FAST FOOD RESTAURANTS,9.20
15/11/2023,11507,CARE LEAVERS,5814,JUST EAT,FAST FOOD RESTAURANTS,18.10
15/11/2023,11995,IPS HWC HARRY CAPLAN,5811,BRAKE BROS LIMITED,CATERERS,453.62
15/11/2023,10291,SECTION17 PAYMENTS CENTRAL,4112,TRAINLINE,PASSENGER RAILWAYS,-56.90
15/11/2023,11135,YOUTH OFFENDING SERVICE,5814,COVENTRY ARENA SHOPPIN,FAST FOOD RESTAURANTS,6.00
14/11/2023,11932,LAC THROUGHCARE TEAM,5399,B&M 031 - AIRPORT,MISCELLANEOUS GENERAL MERCHANDISE,6.00
14/11/2023,10541,COVENTRY EXTENDED LEARNING CENTRE,5411,ASDA GROCERIES ONLINE,"GROCERY STORES, SUPERMARKETS",60.49
14/11/2023,10541,COVENTRY EXTENDED LEARNING CENTRE,5411,ASDA GROCERIES ONLINE,"GROCERY STORES, SUPERMARKETS",114.95
14/11/2023,11507,CARE LEAVERS,5968,AMAZON PRIME HB3799514,DIRECT MARKETING-CONTINUITY/SUBSCRIPTION MERCHANTS,8.99
14/11/2023,11507,CARE LEAVERS,5812,UBER   EATS PENDING,"EATING PLACES, RESTAURANTS",-7.21
14/11/2023,10541,COVENTRY EXTENDED LEARNING CENTRE,5411,ASDA GROCERIES ONLINE,"GROCERY STORES, SUPERMARKETS",-5.96
14/11/2023,11932,LAC THROUGHCARE TEAM,5310,POUNDLAND LTD - 1282,DISCOUNT STORES,36.00
14/11/2023,10541,COVENTRY EXTENDED LEARNING CENTRE,5411,ASDA GROCERIES ONLINE,"GROCERY STORES, SUPERMARKETS",-5.50
14/11/2023,11932,LAC THROUGHCARE TEAM,5399,B&M 031 - AIRPORT,MISCELLANEOUS GENERAL MERCHANDISE,-1.00
14/11/2023,11879,IPS LD MAURICE EDELMAN HOUSE,4899,NETFLIX.COM,"CABLE, SATELLITE, OTHER PAY TELEVISION, RADIO SVCS",15.99
13/11/2023,11507,CARE LEAVERS,4121,UBER  TRIP HELP.UBER.C,LIMOUSINES AND TAXICABS,37.92
13/11/2023,11507,CARE LEAVERS,5812,UBER  EATS HELP.UBER.C,"EATING PLACES, RESTAURANTS",29.97
13/11/2023,11879,IPS LD MAURICE EDELMAN HOUSE,5811,ARTHURBRETT.CO.UK,CATERERS,110.89
13/11/2023,10411,IPS HWC QUINTON LODGE,5811,ARTHURBRETT.CO.UK,CATERERS,25.05
13/11/2023,11507,CARE LEAVERS,5812,UBER    EATS,"EATING PLACES, RESTAURANTS",16.47
13/11/2023,11879,IPS LD MAURICE EDELMAN HOUSE,5811,ARTHURBRETT.CO.UK,CATERERS,68.89
13/11/2023,10448,RESIDENTIAL - GRAVEL HILL,5941,SPORTSDIRECT 149,SPORTING GOODS STORES,35.00
13/11/2023,11507,CARE LEAVERS,5999,AMZNMKTPLACE,MISCELLANEOUS AND SPECIALTY RETAIL STORES,339.00
13/11/2023,11995,IPS HWC HARRY CAPLAN,5811,ARTHURBRETT.CO.UK,CATERERS,53.45
13/11/2023,10411,IPS HWC QUINTON LODGE,5811,ARTHURBRETT.CO.UK,CATERERS,22.71
13/11/2023,10300,INTERNAL FOSTERING TEAM,5651,FUNIGLOBAL REINO UNIDO,FAMILY CLOTHING STORES,-32.99
13/11/2023,11879,IPS LD MAURICE EDELMAN HOUSE,5811,ARTHURBRETT.CO.UK,CATERERS,54.73
13/11/2023,10411,IPS HWC QUINTON LODGE,5811,ARTHURBRETT.CO.UK,CATERERS,13.29
13/11/2023,11507,CARE LEAVERS,5411,PREMIER T/A KENPAS HIG,"GROCERY STORES, SUPERMARKETS",16.65
13/11/2023,10096,SPORTS DEVELOPMENT,5812,CBS ARENA CONCOURSE/KI,"EATING PLACES, RESTAURANTS",8.70
10/11/2023,10541,COVENTRY EXTENDED LEARNING CENTRE,5411,ASDA GROCERIES ONLINE,"GROCERY STORES, SUPERMARKETS",-3.00
10/11/2023,10581,ERDF - COVENTRY & WARWICKSHIRE LOW C,5734,EVENTBRITE.COM ORG FEE,COMPUTER SOFTWARE STORES,121.13
10/11/2023,11507,CARE LEAVERS,7523,APCOA PARKING (UK) LTD,AUTOMOBILE PARKING LOTS AND GARAGES,8.00
10/11/2023,11507,CARE LEAVERS,5814,KOKORO,FAST FOOD RESTAURANTS,36.05
10/11/2023,11507,CARE LEAVERS,5999,AMZNMKTPLACE,MISCELLANEOUS AND SPECIALTY RETAIL STORES,-333.00
10/11/2023,11507,CARE LEAVERS,5411,MARKS&SPENCER PLC,"GROCERY STORES, SUPERMARKETS",29.70
10/11/2023,11507,CARE LEAVERS,5814,JUST EAT,FAST FOOD RESTAURANTS,31.15
10/11/2023,10411,IPS HWC QUINTON LODGE,5811,BRAKE BROS LIMITED,CATERERS,348.42
10/11/2023,11507,CARE LEAVERS,9402,POST OFFICE COUNTER,POSTAL SERVICES-GOVERNMENT ONLY,8.60
10/11/2023,11932,LAC THROUGHCARE TEAM,5814,MCDONALDS 1583,FAST FOOD RESTAURANTS,8.78
10/11/2023,10541,COVENTRY EXTENDED LEARNING CENTRE,5411,ASDA GROCERIES ONLINE,"GROCERY STORES, SUPERMARKETS",42.45
10/11/2023,10541,COVENTRY EXTENDED LEARNING CENTRE,5411,ASDA GROCERIES ONLINE,"GROCERY STORES, SUPERMARKETS",28.45
10/11/2023,11507,CARE LEAVERS,5999,AMZNMKTPLACE,MISCELLANEOUS AND SPECIALTY RETAIL STORES,-16.45
10/11/2023,11507,CARE LEAVERS,9399,DISCLOSURE & BARRING,GOVERNMENT SERVICES-NOT ELSEWHERE CLASSIFIED,13.00
09/11/2023,11507,CARE LEAVERS,5411,FARMFOODS 641,"GROCERY STORES, SUPERMARKETS",16.35
09/11/2023,11103,RESIDENTIAL - BROAD LANE,8299,TWINKL,SCHOOLS & EDUCATIONAL SVC-NOT ELSEWHERE CLASSIFIED,53.88
09/11/2023,11507,CARE LEAVERS,5999,AMZNMKTPLACE,MISCELLANEOUS AND SPECIALTY RETAIL STORES,22.88
09/11/2023,11932,LAC THROUGHCARE TEAM,4112,TRAINLINE,PASSENGER RAILWAYS,55.12
09/11/2023,11507,CARE LEAVERS,4112,TRAINLINE,PASSENGER RAILWAYS,51.15
09/11/2023,11507,CARE LEAVERS,4131,NX BUS CONTACTLESS,BUS LINES,4.50
09/11/2023,11103,RESIDENTIAL - BROAD LANE,7392,REZUMEUKLTD,"CONSULTING, MANAGEMENT, AND PUBLIC RELATIONS SVCS",28.79
08/11/2023,10541,COVENTRY EXTENDED LEARNING CENTRE,5411,ASDA GROCERIES ONLINE,"GROCERY STORES, SUPERMARKETS",-3.00
08/11/2023,11024,DOMESTIC REFUSE,5999,AMZNMKTPLACE,MISCELLANEOUS AND SPECIALTY RETAIL STORES,-6.90
08/11/2023,11507,CARE LEAVERS,5814,JUST EAT,FAST FOOD RESTAURANTS,21.90
08/11/2023,11928,COMMUNITY SUPPORT GRANTS,5999,AMZNMKTPLACE,MISCELLANEOUS AND SPECIALTY RETAIL STORES,-45.48
08/11/2023,11507,CARE LEAVERS,5814,MCDONALDS 1501,FAST FOOD RESTAURANTS,13.27
08/11/2023,10541,COVENTRY EXTENDED LEARNING CENTRE,5411,ASDA GROCERIES ONLINE,"GROCERY STORES, SUPERMARKETS",50.10
08/11/2023,10541,COVENTRY EXTENDED LEARNING CENTRE,5411,ASDA GROCERIES ONLINE,"GROCERY STORES, SUPERMARKETS",-1.00
08/11/2023,10145,IPS LD BRANDON WOOD FARM,5999,AMZNMKTPLACE,MISCELLANEOUS AND SPECIALTY RETAIL STORES,-46.99
08/11/2023,11507,CARE LEAVERS,5812,VIETNAM NIGHTS LTD,"EATING PLACES, RESTAURANTS",29.53
08/11/2023,10448,RESIDENTIAL - GRAVEL HILL,5969,AMAZON.CO.UK H25TE4R94,DIRECT MARKETING-OTHER DIRECT MARKETERS/NOT ELSEW.,11.71
08/11/2023,10541,COVENTRY EXTENDED LEARNING CENTRE,5411,ASDA GROCERIES ONLINE,"GROCERY STORES, SUPERMARKETS",133.80
07/11/2023,11197,WEST FAMILY HUB,7523,COVENTRY CITY COUNCIL,AUTOMOBILE PARKING LOTS AND GARAGES,7.00
07/11/2023,11507,CARE LEAVERS,4112,CROSS COUNTRY RAIL,PASSENGER RAILWAYS,112.40
07/11/2023,11507,CARE LEAVERS,5814,DEBS DELIGHTFUL JACKET,FAST FOOD RESTAURANTS,7.60
07/11/2023,11197,WEST FAMILY HUB,5199,JOHALDAIRIES.CO.UK,NONDURABLE GOODS (NOT ELSEWHERE CLASSIFIED),6.23
07/11/2023,10788,NRPF - NO RECOURSE TO PUBLIC FUNDS,5311,WWW.ARGOS.CO.UK,DEPARTMENT STORES,178.95
07/11/2023,11507,CARE LEAVERS,4121,UBER    TRIP,LIMOUSINES AND TAXICABS,8.97
07/11/2023,11507,CARE LEAVERS,5999,AMZNMKTPLACE,MISCELLANEOUS AND SPECIALTY RETAIL STORES,15.25
07/11/2023,11507,CARE LEAVERS,4112,CROSS COUNTRY RAIL,PASSENGER RAILWAYS,75.70
07/11/2023,10169,SECTION17 PAYMENTS SOUTH,7011,LIVEWELL ACCOMMODATION,"LODGING-HOTELS,MOTELS,RESORTS-NOT CLASSIFIED",-150.00
06/11/2023,11166,SOUTH FAMILY HUB,3615,TRAVELODG TRAVELODGE G,TRAVELODGE,161.12
06/11/2023,11507,CARE LEAVERS,5311,WWW.ARGOS.CO.UK,DEPARTMENT STORES,60.00
06/11/2023,11507,CARE LEAVERS,4121,UBER    TRIP,LIMOUSINES AND TAXICABS,11.98
06/11/2023,11507,CARE LEAVERS,5999,AMZNMKTPLACE,MISCELLANEOUS AND SPECIALTY RETAIL STORES,38.96
06/11/2023,11507,CARE LEAVERS,5814,JUST EAT,FAST FOOD RESTAURANTS,22.62
06/11/2023,11507,CARE LEAVERS,5719,SHARKNINJA EUROPE,MISCELLANEOUS HOUSE FURNISHING SPECIALTY SHOPS,179.99
06/11/2023,11507,CARE LEAVERS,4121,UBER    TRIP,LIMOUSINES AND TAXICABS,9.98
06/11/2023,11507,CARE LEAVERS,5712,IKEA LTD SHOP ONLINE,"EQUIP, FURNITURE, HOME FURNSHNGS STRS (EXCPT APPL)",602.33
06/11/2023,10507,PARK RANGERS,7999,CROMA LOCKSMITHS & SEC,RECREATION SERVICES (NOT ELSEWHERE CLASSIFIED),17.10
06/11/2023,11507,CARE LEAVERS,5691,H & M,MEN'S AND WOMEN'S CLOTHING STORES,40.18
06/11/2023,11507,CARE LEAVERS,5813,HMV EMPIRE COVENTRY,"BAR,LOUNGE,DISCO,NIGHTCLUB,TAVERN-ALCOHOLIC DRINKS",6.00
06/11/2023,11507,CARE LEAVERS,5411,TESCO STORES 2849,"GROCERY STORES, SUPERMARKETS",57.10
06/11/2023,11197,WEST FAMILY HUB,7523,COVENTRY CITY COUNCIL,AUTOMOBILE PARKING LOTS AND GARAGES,8.00
06/11/2023,11403,IPS HWC COTTAGE FARM,5811,BRAKE BROS LIMITED,CATERERS,282.11
06/11/2023,10411,IPS HWC QUINTON LODGE,5811,BRAKE BROS LIMITED,CATERERS,175.13
06/11/2023,11024,DOMESTIC REFUSE,5999,AMZNMKTPLACE,MISCELLANEOUS AND SPECIALTY RETAIL STORES,6.90
06/11/2023,10084,SECTION17 PAYMENTS WEST,4722,BKG HOTEL AT BOOKING.C,TRAVEL AGENCIES AND TOUR OPERATORS,892.62
06/11/2023,11103,RESIDENTIAL - BROAD LANE,5691,SP TRAPSTAR LONDON,MEN'S AND WOMEN'S CLOTHING STORES,140.00
03/11/2023,11507,CARE LEAVERS,4121,UBER    TRIP,LIMOUSINES AND TAXICABS,8.93
03/11/2023,11103,RESIDENTIAL - BROAD LANE,4121,UBER    TRIP,LIMOUSINES AND TAXICABS,7.92
03/11/2023,10145,IPS LD BRANDON WOOD FARM,5999,AMZNMKTPLACE,MISCELLANEOUS AND SPECIALTY RETAIL STORES,46.99
03/11/2023,11507,CARE LEAVERS,5814,COSTA COFFEE 43010820,FAST FOOD RESTAURANTS,6.55
03/11/2023,11507,CARE LEAVERS,5814,JUST EAT,FAST FOOD RESTAURANTS,11.48
03/11/2023,11103,RESIDENTIAL - BROAD LANE,5947,CARD FACTORY,"GIFT, CARD, NOVELTY AND SOUVENIR SHOPS",38.73
02/11/2023,11507,CARE LEAVERS,5719,VICTORIAN PLUMBING LTD,MISCELLANEOUS HOUSE FURNISHING SPECIALTY SHOPS,419.85
02/11/2023,11771,STREETPRIDE SOUTH,7278,COSTCO WHOLESALE #122,"BUYING/SHOPPING CLUBS, SERVICES",50.72
02/11/2023,11932,LAC THROUGHCARE TEAM,7523,WALSGRAVE CAR PARK,AUTOMOBILE PARKING LOTS AND GARAGES,3.60
02/11/2023,11507,CARE LEAVERS,5812,GREGGS PLC,"EATING PLACES, RESTAURANTS",5.75
02/11/2023,10040,IPS HWC COPTHORNE,5499,WWW.JOHALDAIRIES.CO.UK,"MISC FOOD STORE-CONVENIENCE,MRKT,SPLTY,VENDNG MACS",12.26
02/11/2023,10084,SECTION17 PAYMENTS WEST,4131,WEST MIDLANDS TRAV,BUS LINES,60.00
02/11/2023,11197,WEST FAMILY HUB,5499,WWW.JOHALDAIRIES.CO.UK,"MISC FOOD STORE-CONVENIENCE,MRKT,SPLTY,VENDNG MACS",6.23
02/11/2023,11995,IPS HWC HARRY CAPLAN,5499,WWW.JOHALDAIRIES.CO.UK,"MISC FOOD STORE-CONVENIENCE,MRKT,SPLTY,VENDNG MACS",8.47
02/11/2023,11135,YOUTH OFFENDING SERVICE,5814,COVENTRY ARENA SHOPPIN,FAST FOOD RESTAURANTS,8.00
02/11/2023,11043,CENTRAL SOCIAL WORKER CASEHOLDING TEAM,7278,COSTCO ONLINE UK LIMIT,"BUYING/SHOPPING CLUBS, SERVICES",26.40
01/11/2023,10411,IPS HWC QUINTON LODGE,5811,BRAKE BROS LIMITED,CATERERS,200.90
01/11/2023,11403,IPS HWC COTTAGE FARM,5811,ARTHURBRETT.CO.UK,CATERERS,21.36
01/11/2023,10096,SPORTS DEVELOPMENT,5411,SAINSBURYS S/MKTS,"GROCERY STORES, SUPERMARKETS",5.30
01/11/2023,11049,CREMATORIUM,9399,COVENTRY CITY COUNCIL,GOVERNMENT SERVICES-NOT ELSEWHERE CLASSIFIED,11.00
01/11/2023,10291,SECTION17 PAYMENTS CENTRAL,7011,SECURITY DEPOSIT,"LODGING-HOTELS,MOTELS,RESORTS-NOT CLASSIFIED",250.00
01/11/2023,11049,CREMATORIUM,9399,COVENTRY CITY COUNCIL,GOVERNMENT SERVICES-NOT ELSEWHERE CLASSIFIED,11.00
01/11/2023,10291,SECTION17 PAYMENTS CENTRAL,7011,DAMAGE CHARGE,"LODGING-HOTELS,MOTELS,RESORTS-NOT CLASSIFIED",270.00
01/11/2023,10448,RESIDENTIAL - GRAVEL HILL,4899,NETFLIX,"CABLE, SATELLITE, OTHER PAY TELEVISION, RADIO SVCS",10.99
01/11/2023,10360,JOB SHOP,5999,AMZNMKTPLACE,MISCELLANEOUS AND SPECIALTY RETAIL STORES,9.99
01/11/2023,10360,JOB SHOP,5999,AMZNMKTPLACE,MISCELLANEOUS AND SPECIALTY RETAIL STORES,10.05
01/11/2023,11995,IPS HWC HARRY CAPLAN,5811,ARTHURBRETT.CO.UK,CATERERS,40.51
01/11/2023,11879,IPS LD MAURICE EDELMAN HOUSE,5811,ARTHURBRETT.CO.UK,CATERERS,53.75
01/11/2023,10411,IPS HWC QUINTON LODGE,5811,ARTHURBRETT.CO.UK,CATERERS,27.71
01/11/2023,11507,CARE LEAVERS,8299,TRAINING AT WORK GROUP,SCHOOLS & EDUCATIONAL SVC-NOT ELSEWHERE CLASSIFIED,82.80
01/11/2023,10411,IPS HWC QUINTON LODGE,5811,ARTHURBRETT.CO.UK,CATERERS,22.55
01/11/2023,10040,IPS HWC COPTHORNE,5811,ARTHURBRETT.CO.UK,CATERERS,71.35
01/11/2023,11879,IPS LD MAURICE EDELMAN HOUSE,5811,ARTHURBRETT.CO.UK,CATERERS,90.85
01/11/2023,11879,IPS LD MAURICE EDELMAN HOUSE,5811,ARTHURBRETT.CO.UK,CATERERS,119.11
01/11/2023,11403,IPS HWC COTTAGE FARM,5811,ARTHURBRETT.CO.UK,CATERERS,9.80
01/11/2023,11995,IPS HWC HARRY CAPLAN,5811,ARTHURBRETT.CO.UK,CATERERS,64.60
01/11/2023,10411,IPS HWC QUINTON LODGE,5811,ARTHURBRETT.CO.UK,CATERERS,25.87
01/11/2023,10040,IPS HWC COPTHORNE,5811,ARTHURBRETT.CO.UK,CATERERS,23.52
31/10/2023,11507,CARE LEAVERS,9399,LONDON BOROUGH OF HAVE,GOVERNMENT SERVICES-NOT ELSEWHERE CLASSIFIED,55.00
31/10/2023,11166,SOUTH FAMILY HUB,5411,ADSA STORES LTD 4231,"GROCERY STORES, SUPERMARKETS",36.02
31/10/2023,11507,CARE LEAVERS,5311,WWW.ARGOS.CO.UK,DEPARTMENT STORES,601.44
31/10/2023,11507,CARE LEAVERS,5651,PRIMARK,FAMILY CLOTHING STORES,13.00
31/10/2023,11507,CARE LEAVERS,5411,TESCO STORES 2849,"GROCERY STORES, SUPERMARKETS",20.00
31/10/2023,11507,CARE LEAVERS,5411,TESCO STORES 2849,"GROCERY STORES, SUPERMARKETS",20.00
31/10/2023,11507,CARE LEAVERS,5411,MARKS&SPENCER PLC,"GROCERY STORES, SUPERMARKETS",29.35
31/10/2023,11507,CARE LEAVERS,5411,TESCO STORES 2849,"GROCERY STORES, SUPERMARKETS",20.00
31/10/2023,11507,CARE LEAVERS,5411,TESCO STORES 2849,"GROCERY STORES, SUPERMARKETS",20.00
31/10/2023,11507,CARE LEAVERS,5411,TESCO STORES 2849,"GROCERY STORES, SUPERMARKETS",50.00
31/10/2023,11507,CARE LEAVERS,5411,TESCO STORES 2849,"GROCERY STORES, SUPERMARKETS",20.00
31/10/2023,11507,CARE LEAVERS,5411,TESCO STORES 2849,"GROCERY STORES, SUPERMARKETS",20.00
31/10/2023,11507,CARE LEAVERS,5411,TESCO STORES 2849,"GROCERY STORES, SUPERMARKETS",17.00
31/10/2023,11507,CARE LEAVERS,5411,TESCO STORES 2849,"GROCERY STORES, SUPERMARKETS",20.00
31/10/2023,11507,CARE LEAVERS,5411,TESCO STORES 2849,"GROCERY STORES, SUPERMARKETS",20.00
31/10/2023,11507,CARE LEAVERS,5411,TESCO STORES 2849,"GROCERY STORES, SUPERMARKETS",20.00
31/10/2023,11507,CARE LEAVERS,5411,TESCO STORES 2849,"GROCERY STORES, SUPERMARKETS",20.00
31/10/2023,11932,LAC THROUGHCARE TEAM,9399,GEN REGISTER OFFICE,GOVERNMENT SERVICES-NOT ELSEWHERE CLASSIFIED,38.00
31/10/2023,11507,CARE LEAVERS,5411,TESCO STORES 2849,"GROCERY STORES, SUPERMARKETS",-15.00
31/10/2023,11507,CARE LEAVERS,4784,M6 TOLL,"BRIDGE AND ROAD FEES, TOLLS",5.80
31/10/2023,11507,CARE LEAVERS,5411,TESCO STORES 2849,"GROCERY STORES, SUPERMARKETS",-15.00
31/10/2023,11507,CARE LEAVERS,4784,M6 TOLL,"BRIDGE AND ROAD FEES, TOLLS",8.90
31/10/2023,11932,LAC THROUGHCARE TEAM,9399,GEN REGISTER OFFICE,GOVERNMENT SERVICES-NOT ELSEWHERE CLASSIFIED,38.00
31/10/2023,11197,WEST FAMILY HUB,7523,COVENTRY CITY COUNCIL,AUTOMOBILE PARKING LOTS AND GARAGES,8.00
31/10/2023,11507,CARE LEAVERS,5411,TESCO STORES 2849,"GROCERY STORES, SUPERMARKETS",17.00
30/10/2023,11274,PUBLIC HEALTH STAFFING & OVERHEADS,7311,FACEBK  7N7RYTT6H2,ADVERTISING SERVICES,71.70
30/10/2023,11826,REPAIR & MAINTENANCE,5331,PAYPAL  ARGOSDIRECT,VARIETY STORES,30.00
30/10/2023,10416,LAC PERMANENCY,4112,TRAINLINE,PASSENGER RAILWAYS,94.65
30/10/2023,10541,COVENTRY EXTENDED LEARNING CENTRE,5411,ASDA GROCERIES ONLINE,"GROCERY STORES, SUPERMARKETS",93.94
30/10/2023,11507,CARE LEAVERS,5211,B&Q MARKETPLACE,"BUILDING MATERIALS, LUMBER STORES",135.89
30/10/2023,10541,COVENTRY EXTENDED LEARNING CENTRE,5411,ASDA GROCERIES ONLINE,"GROCERY STORES, SUPERMARKETS",6.50
30/10/2023,11507,CARE LEAVERS,5812,GREGGS PLC,"EATING PLACES, RESTAURANTS",12.10
30/10/2023,11507,CARE LEAVERS,4900,WWW.OVOENERGY.COM,"UTLTS-ELCTRC, GAS, HEATING OIL, SANITARY, WATER",50.00
30/10/2023,11507,CARE LEAVERS,5411,TESCO STORES 2335,"GROCERY STORES, SUPERMARKETS",43.35
30/10/2023,10169,SECTION17 PAYMENTS SOUTH,4215,ANYVANUK,"COURIER SVC-AIR & GROUND, FREIGHT FORWARDERS",372.00
30/10/2023,11507,CARE LEAVERS,5941,J D SPORTS,SPORTING GOODS STORES,485.20
30/10/2023,11507,CARE LEAVERS,4900,WWW.OVOENERGY.COM,"UTLTS-ELCTRC, GAS, HEATING OIL, SANITARY, WATER",50.00
30/10/2023,10169,SECTION17 PAYMENTS SOUTH,5713,.,FLOOR COVERING STORES,475.00
30/10/2023,11507,CARE LEAVERS,5411,TESCO STORES 2849,"GROCERY STORES, SUPERMARKETS",51.94
30/10/2023,11403,IPS HWC COTTAGE FARM,5811,BRAKE BROS LIMITED,CATERERS,340.04
30/10/2023,11049,CREMATORIUM,5999,AMZNMKTPLACE,MISCELLANEOUS AND SPECIALTY RETAIL STORES,18.98
30/10/2023,11086,OUTDOOR EDUCATION CENTRE,5661,CROCSEU,SHOE STORES,26.99
30/10/2023,11507,CARE LEAVERS,4900,WWW.OVOENERGY.COM,"UTLTS-ELCTRC, GAS, HEATING OIL, SANITARY, WATER",50.00
30/10/2023,11507,CARE LEAVERS,5411,TESCO STORES 2335,"GROCERY STORES, SUPERMARKETS",6.60
30/10/2023,11507,CARE LEAVERS,5621,NEW LOOK 1852,WOMEN'S READY TO WEAR STORES,54.20
30/10/2023,11687,RESIDENTIAL - BROAD PARK HOUSE,5812,MELBICKS RESTAURANT,"EATING PLACES, RESTAURANTS",13.10
30/10/2023,10448,RESIDENTIAL - GRAVEL HILL,5999,AMZNMKTPLACE,MISCELLANEOUS AND SPECIALTY RETAIL STORES,5.87
30/10/2023,11409,HONG KONG BRITISH NATIONAL (OVERSEAS) UK,8398,BRITISH HEART FOUNDATI,"ORGANIZATIONS, CHARITABLE AND SOCIAL SERVICES",9.00
30/10/2023,10448,RESIDENTIAL - GRAVEL HILL,5999,AMZNMKTPLACE,MISCELLANEOUS AND SPECIALTY RETAIL STORES,7.98
30/10/2023,11307,IPS MH THE POD,5411,SAINSBURYS S MKTS,"GROCERY STORES, SUPERMARKETS",.95
30/10/2023,11507,CARE LEAVERS,5499,MDN WELCOME B/WAITROSE,"MISC FOOD STORE-CONVENIENCE,MRKT,SPLTY,VENDNG MACS",8.25
30/10/2023,11932,LAC THROUGHCARE TEAM,5812,MCDONALDS   539,"EATING PLACES, RESTAURANTS",11.57
30/10/2023,11932,LAC THROUGHCARE TEAM,5812,MCDONALDS   539,"EATING PLACES, RESTAURANTS",11.57
30/10/2023,10541,COVENTRY EXTENDED LEARNING CENTRE,8211,MRCARTERMATHS LTD,"SCHOOLS, ELEMENTARY AND SECONDARY",36.00
27/10/2023,11166,SOUTH FAMILY HUB,5411,TESCO STORES 2335,"GROCERY STORES, SUPERMARKETS",11.53
27/10/2023,10397,"AD - PLANNING, TRANSPORT & HIGHWAYS",5947,CARD FACTORY,"GIFT, CARD, NOVELTY AND SOUVENIR SHOPS",1.39
27/10/2023,11826,REPAIR & MAINTENANCE,5251,PAYPAL  TOOLSTOREUK,HARDWARE STORES,-259.20
27/10/2023,11507,CARE LEAVERS,5411,ALDI 20 772,"GROCERY STORES, SUPERMARKETS",25.48
27/10/2023,11826,REPAIR & MAINTENANCE,5200,B & Q 1258,HOME SUPPLY WAREHOUSE STORES,42.62
27/10/2023,11507,CARE LEAVERS,5812,WING WAH COVENTRY,"EATING PLACES, RESTAURANTS",35.38
27/10/2023,11507,CARE LEAVERS,5814,DEBS DELIGHTFUL JACKET,FAST FOOD RESTAURANTS,9.40
27/10/2023,11107,CENTRAL FAMILY HUB,5999,AMZNMKTPLACE,MISCELLANEOUS AND SPECIALTY RETAIL STORES,16.99
27/10/2023,11870,IPS LD WILFRED SPENCER CENTRE,5411,WM MORRISONS STORE,"GROCERY STORES, SUPERMARKETS",17.89
27/10/2023,11870,IPS LD WILFRED SPENCER CENTRE,5411,WM MORRISONS STORE,"GROCERY STORES, SUPERMARKETS",91.06
27/10/2023,11826,REPAIR & MAINTENANCE,5200,B & Q 1258,HOME SUPPLY WAREHOUSE STORES,36.00
27/10/2023,10541,COVENTRY EXTENDED LEARNING CENTRE,8299,MANGAHIGH.COM,SCHOOLS & EDUCATIONAL SVC-NOT ELSEWHERE CLASSIFIED,288.00
27/10/2023,11507,CARE LEAVERS,5814,MCDONALDS 1686,FAST FOOD RESTAURANTS,6.99
27/10/2023,10411,IPS HWC QUINTON LODGE,5811,BRAKE BROS LIMITED,CATERERS,-7.20
27/10/2023,11507,CARE LEAVERS,7523,PAYBYPHONE RE COVENTRY,AUTOMOBILE PARKING LOTS AND GARAGES,.65
27/10/2023,10416,LAC PERMANENCY,4112,TRAINLINE,PASSENGER RAILWAYS,84.36
27/10/2023,11932,LAC THROUGHCARE TEAM,5814,MCDONALDS,FAST FOOD RESTAURANTS,5.77
27/10/2023,11197,WEST FAMILY HUB,7523,COVENTRY CITY COUNCIL,AUTOMOBILE PARKING LOTS AND GARAGES,6.00
27/10/2023,11507,CARE LEAVERS,5411,SAINSBURYS S/MKTS,"GROCERY STORES, SUPERMARKETS",23.40
27/10/2023,10411,IPS HWC QUINTON LODGE,5811,BRAKE BROS LIMITED,CATERERS,221.78
27/10/2023,11507,CARE LEAVERS,5994,LADY GODIVA NEWS L,NEWS DEALERS AND NEWSSTANDS,17.49
26/10/2023,10169,SECTION17 PAYMENTS SOUTH,7011,LIVEWELL ACCOMMODATION,"LODGING-HOTELS,MOTELS,RESORTS-NOT CLASSIFIED",150.00
26/10/2023,11995,IPS HWC HARRY CAPLAN,5422,WWW.MIDLANDFOODS.CO.UK,"FREEZER, LOCKER MEAT PROVISIONERS",57.18
26/10/2023,11507,CARE LEAVERS,5311,WWW.ARGOS.CO.UK,DEPARTMENT STORES,232.95
26/10/2023,11464,DSG - FAMILY HUB BUDGET,7523,COVENTRY CITY COUNCIL,AUTOMOBILE PARKING LOTS AND GARAGES,5.00
26/10/2023,11103,RESIDENTIAL - BROAD LANE,4121,UBER    TRIP,LIMOUSINES AND TAXICABS,7.95
26/10/2023,11166,SOUTH FAMILY HUB,7997,XCEL LEISURE CENTRE,"CLUBS-CNTRY,MBRSHIP(ATHLET,REC,SPRTS,PRIVATE GOLF",11.00
26/10/2023,10397,"AD - PLANNING, TRANSPORT & HIGHWAYS",4112,COVENTRY T/O,PASSENGER RAILWAYS,63.20
26/10/2023,11507,CARE LEAVERS,5712,IKEA LTD SHOP ONLINE,"EQUIP, FURNITURE, HOME FURNSHNGS STRS (EXCPT APPL)",65.00
26/10/2023,11507,CARE LEAVERS,7523,COMMUNITY HEALTH PARTN,AUTOMOBILE PARKING LOTS AND GARAGES,7.00
26/10/2023,10541,COVENTRY EXTENDED LEARNING CENTRE,5411,ASDA GROCERIES ONLINE,"GROCERY STORES, SUPERMARKETS",46.20
26/10/2023,10169,SECTION17 PAYMENTS SOUTH,4112,TRAINLINE,PASSENGER RAILWAYS,41.36
26/10/2023,10383,IPS HWC KNIGHTLOW,5811,BRAKE BROS LIMITED,CATERERS,-51.18
26/10/2023,10541,COVENTRY EXTENDED LEARNING CENTRE,5411,ASDA GROCERIES ONLINE,"GROCERY STORES, SUPERMARKETS",45.50
26/10/2023,11984,IPS MAYMORN RESOURCE CENTRE,4111,WWW.WMCA.ORG.UK,"TRANSPRTN-SUBRBN & LOCAL COMTR PSNGR, INCL FERRIES",20.00
26/10/2023,10541,COVENTRY EXTENDED LEARNING CENTRE,5411,ASDA GROCERIES ONLINE,"GROCERY STORES, SUPERMARKETS",-6.00
26/10/2023,11507,CARE LEAVERS,5712,IKEA LTD SHOP ONLINE,"EQUIP, FURNITURE, HOME FURNSHNGS STRS (EXCPT APPL)",35.00
26/10/2023,11111,SPORTS ORGANISATIONS,7399,EYDENS,BUSINESS SERVICES-NOT ELSEWHERE CLASSIFIED,13.98
26/10/2023,11409,HONG KONG BRITISH NATIONAL (OVERSEAS) UK,5945,THE ENTERTAINER 31,"GAME, TOY, AND HOBBY SHOPS",14.99
26/10/2023,11995,IPS HWC HARRY CAPLAN,5422,WWW.MIDLANDFOODS.CO.UK,"FREEZER, LOCKER MEAT PROVISIONERS",48.66
26/10/2023,11403,IPS HWC COTTAGE FARM,5422,WWW.MIDLANDFOODS.CO.UK,"FREEZER, LOCKER MEAT PROVISIONERS",125.10
26/10/2023,10723,CHILDREN & ADOLESCENTS MENTAL HEA,4112,WWW.AVANTIWESTCOAST.CO,PASSENGER RAILWAYS,-96.00
26/10/2023,11409,HONG KONG BRITISH NATIONAL (OVERSEAS) UK,5411,MARKS&SPENCER PLC,"GROCERY STORES, SUPERMARKETS",20.00
26/10/2023,11507,CARE LEAVERS,5814,MCDONALDS 501,FAST FOOD RESTAURANTS,5.39
26/10/2023,10169,SECTION17 PAYMENTS SOUTH,4722,BKG HOTEL AT BOOKING.C,TRAVEL AGENCIES AND TOUR OPERATORS,644.00
26/10/2023,11879,IPS LD MAURICE EDELMAN HOUSE,5968,AMAZON PRIME H03BL4M04,DIRECT MARKETING-CONTINUITY/SUBSCRIPTION MERCHANTS,8.99
26/10/2023,10291,SECTION17 PAYMENTS CENTRAL,4112,TRAINLINE,PASSENGER RAILWAYS,122.78
26/10/2023,11687,RESIDENTIAL - BROAD PARK HOUSE,4899,NETFLIX.COM,"CABLE, SATELLITE, OTHER PAY TELEVISION, RADIO SVCS",15.99
26/10/2023,11507,CARE LEAVERS,5411,TESCO STORES 2849,"GROCERY STORES, SUPERMARKETS",22.64
25/10/2023,10541,COVENTRY EXTENDED LEARNING CENTRE,5411,ASDA GROCERIES ONLINE,"GROCERY STORES, SUPERMARKETS",-3.98
25/10/2023,10040,IPS HWC COPTHORNE,5499,WWW.JOHALDAIRIES.CO.UK,"MISC FOOD STORE-CONVENIENCE,MRKT,SPLTY,VENDNG MACS",12.26
25/10/2023,11507,CARE LEAVERS,5812,MCDONALDS   931,"EATING PLACES, RESTAURANTS",14.88
25/10/2023,11507,CARE LEAVERS,9399,2MAA041076377 TD E-PMT,GOVERNMENT SERVICES-NOT ELSEWHERE CLASSIFIED,82.00
25/10/2023,11826,REPAIR & MAINTENANCE,5999,AMZNMKTPLACE,MISCELLANEOUS AND SPECIALTY RETAIL STORES,17.86
25/10/2023,10383,IPS HWC KNIGHTLOW,5811,BRAKE BROS LIMITED,CATERERS,253.61
25/10/2023,10448,RESIDENTIAL - GRAVEL HILL,5999,AMZNMKTPLACE,MISCELLANEOUS AND SPECIALTY RETAIL STORES,10.77
25/10/2023,11507,CARE LEAVERS,5311,WWW.ARGOS.CO.UK,DEPARTMENT STORES,78.95
25/10/2023,11057,SFPC-FAMILY GROUP CONFERENCING,5411,ALDI 15 772,"GROCERY STORES, SUPERMARKETS",3.29
25/10/2023,11307,IPS MH THE POD,5411,SAINSBURYS S MKTS,"GROCERY STORES, SUPERMARKETS",3.65
25/10/2023,11170,BEHAVIOUR SUPPORT - PRIMARY CENTRES,5999,AMZNMKTPLACE,MISCELLANEOUS AND SPECIALTY RETAIL STORES,35.53
25/10/2023,11197,WEST FAMILY HUB,5499,WWW.JOHALDAIRIES.CO.UK,"MISC FOOD STORE-CONVENIENCE,MRKT,SPLTY,VENDNG MACS",6.23
25/10/2023,11507,CARE LEAVERS,5499,TROWELL,"MISC FOOD STORE-CONVENIENCE,MRKT,SPLTY,VENDNG MACS",5.50
25/10/2023,11932,LAC THROUGHCARE TEAM,5814,MCDONALDS,FAST FOOD RESTAURANTS,6.50
25/10/2023,11507,CARE LEAVERS,5812,TROWELL N/E COSTA,"EATING PLACES, RESTAURANTS",3.70
25/10/2023,11197,WEST FAMILY HUB,7523,COVENTRY CITY COUNCIL,AUTOMOBILE PARKING LOTS AND GARAGES,8.00
25/10/2023,11771,STREETPRIDE SOUTH,7999,CROMA LOCKSMITHS & SEC,RECREATION SERVICES (NOT ELSEWHERE CLASSIFIED),24.08
25/10/2023,10448,RESIDENTIAL - GRAVEL HILL,5812,CAFFE NERO COVENTRY,"EATING PLACES, RESTAURANTS",7.85
25/10/2023,11507,CARE LEAVERS,5813,THE NEW BOARD INN,"BAR,LOUNGE,DISCO,NIGHTCLUB,TAVERN-ALCOHOLIC DRINKS",13.09
25/10/2023,11507,CARE LEAVERS,4112,WOLVERHAMPTON T/O,PASSENGER RAILWAYS,-65.80
25/10/2023,11984,IPS MAYMORN RESOURCE CENTRE,4111,WWW.WMCA.ORG.UK,"TRANSPRTN-SUBRBN & LOCAL COMTR PSNGR, INCL FERRIES",10.00
25/10/2023,10317,MH COMMUNITY MENTAL HEALTH TEAM,9222,DERBYSHIRE010OFFIC,FINES,81.00
25/10/2023,11771,STREETPRIDE SOUTH,5211,SCREWFIX DIR LTD,"BUILDING MATERIALS, LUMBER STORES",16.47
25/10/2023,11995,IPS HWC HARRY CAPLAN,5499,WWW.JOHALDAIRIES.CO.UK,"MISC FOOD STORE-CONVENIENCE,MRKT,SPLTY,VENDNG MACS",8.47
25/10/2023,10291,SECTION17 PAYMENTS CENTRAL,5311,WWW.ARGOS.CO.UK,DEPARTMENT STORES,75.00
25/10/2023,10541,COVENTRY EXTENDED LEARNING CENTRE,5411,ASDA GROCERIES ONLINE,"GROCERY STORES, SUPERMARKETS",44.35
25/10/2023,11984,IPS MAYMORN RESOURCE CENTRE,4111,WWW.WMCA.ORG.UK,"TRANSPRTN-SUBRBN & LOCAL COMTR PSNGR, INCL FERRIES",10.00
25/10/2023,11021,LAC & CARE LEAVERS,9399,MANCHESTER CITY COUNCI,GOVERNMENT SERVICES-NOT ELSEWHERE CLASSIFIED,25.00
25/10/2023,10411,IPS HWC QUINTON LODGE,5811,BRAKE BROS LIMITED,CATERERS,316.73
25/10/2023,11826,REPAIR & MAINTENANCE,5211,ROCKWELL SHEET SALES L,"BUILDING MATERIALS, LUMBER STORES",122.95
25/10/2023,11507,CARE LEAVERS,4112,WOLVERHAMPTON T/O,PASSENGER RAILWAYS,65.80
25/10/2023,10084,SECTION17 PAYMENTS WEST,6513,MBIZ-I PROPERTY SOLUTI,REAL ESTATE AGENTS AND MANAGERS-RENTALS,380.63
25/10/2023,11826,REPAIR & MAINTENANCE,5251,PAYPAL  TOOLSTOREUK,HARDWARE STORES,221.09
25/10/2023,11135,YOUTH OFFENDING SERVICE,5999,AMZNMKTPLACE,MISCELLANEOUS AND SPECIALTY RETAIL STORES,-50.99
25/10/2023,11170,BEHAVIOUR SUPPORT - PRIMARY CENTRES,5999,AMZNMKTPLACE,MISCELLANEOUS AND SPECIALTY RETAIL STORES,60.62
25/10/2023,11507,CARE LEAVERS,5812,SKY STAFF RESTAURANT F,"EATING PLACES, RESTAURANTS",6.77
25/10/2023,11826,REPAIR & MAINTENANCE,8244,WWW.TRADESKILLS4U.CO.U,"SCHOOLS, BUSINESS AND SECRETARIAL",720.00
25/10/2023,11197,WEST FAMILY HUB,5310,THE WORKS,DISCOUNT STORES,26.50
25/10/2023,11170,BEHAVIOUR SUPPORT - PRIMARY CENTRES,5999,AMZNMKTPLACE,MISCELLANEOUS AND SPECIALTY RETAIL STORES,19.81
25/10/2023,11103,RESIDENTIAL - BROAD LANE,4121,UBER    TRIP,LIMOUSINES AND TAXICABS,15.91
25/10/2023,11507,CARE LEAVERS,9399,2MAA041075987 TD E-PMT,GOVERNMENT SERVICES-NOT ELSEWHERE CLASSIFIED,82.00
25/10/2023,11870,IPS LD WILFRED SPENCER CENTRE,5499,WWW.JOHALDAIRIES.CO.UK,"MISC FOOD STORE-CONVENIENCE,MRKT,SPLTY,VENDNG MACS",7.80
25/10/2023,11274,PUBLIC HEALTH STAFFING & OVERHEADS,7311,FACEBK  W2M7LUX5H2,ADVERTISING SERVICES,125.00
25/10/2023,11507,CARE LEAVERS,4784,M6 TOLL,"BRIDGE AND ROAD FEES, TOLLS",8.90
25/10/2023,11507,CARE LEAVERS,5814,JUST EAT,FAST FOOD RESTAURANTS,21.32
24/10/2023,10876,"SEN - OUTREACH, CASEWORK & SUPPORTED",9402,POST OFFICE COUNTER,POSTAL SERVICES-GOVERNMENT ONLY,8.15
24/10/2023,10541,COVENTRY EXTENDED LEARNING CENTRE,5411,ASDA GROCERIES ONLINE,"GROCERY STORES, SUPERMARKETS",-5.00
24/10/2023,11859,BUILDING CONTROL,9399,LAND REGISTRY ECOM CCC,GOVERNMENT SERVICES-NOT ELSEWHERE CLASSIFIED,3.00
24/10/2023,11049,CREMATORIUM,9399,COVENTRY CITY COUNCIL,GOVERNMENT SERVICES-NOT ELSEWHERE CLASSIFIED,11.00
24/10/2023,11111,SPORTS ORGANISATIONS,7399,EYDENS,BUSINESS SERVICES-NOT ELSEWHERE CLASSIFIED,13.98
24/10/2023,11507,CARE LEAVERS,5814,STARBUCKS,FAST FOOD RESTAURANTS,6.90
24/10/2023,11086,OUTDOOR EDUCATION CENTRE,5411,TESCO STORES 3057,"GROCERY STORES, SUPERMARKETS",16.00
24/10/2023,11507,CARE LEAVERS,5912,BOOTS 6618,"DRUG STORES, PHARMACIES",3.99
24/10/2023,11166,SOUTH FAMILY HUB,7523,COVENTRY CITY COUNCIL,AUTOMOBILE PARKING LOTS AND GARAGES,3.00
24/10/2023,11103,RESIDENTIAL - BROAD LANE,4121,UBER  TRIP,LIMOUSINES AND TAXICABS,10.15
24/10/2023,11307,IPS MH THE POD,5411,AL HALAL SUPERMARKET(R,"GROCERY STORES, SUPERMARKETS",6.96
24/10/2023,11197,WEST FAMILY HUB,5310,POUNDLAND LTD - 2297,DISCOUNT STORES,38.50
24/10/2023,11609,ADULT ED AOL8 - VARIOUS,5411,CO-OPERATIVE FOOD,"GROCERY STORES, SUPERMARKETS",3.50
24/10/2023,11307,IPS MH THE POD,5411,WM MORRISONS STORE,"GROCERY STORES, SUPERMARKETS",11.29
24/10/2023,10962,OUTDOOR EDUCATION SERVICE,5999,AMZNMKTPLACE,MISCELLANEOUS AND SPECIALTY RETAIL STORES,26.40
24/10/2023,10084,SECTION17 PAYMENTS WEST,4722,BKG HOTEL AT BOOKING.C,TRAVEL AGENCIES AND TOUR OPERATORS,901.53
24/10/2023,11507,CARE LEAVERS,4784,TFL BUSINESS BOPS WEB,"BRIDGE AND ROAD FEES, TOLLS",27.50
24/10/2023,11135,YOUTH OFFENDING SERVICE,5411,MARKS&SPENCER PLC,"GROCERY STORES, SUPERMARKETS",15.10
24/10/2023,11507,CARE LEAVERS,4121,UBER    TRIP,LIMOUSINES AND TAXICABS,13.54
24/10/2023,11197,WEST FAMILY HUB,5411,ASDA SUPERSTORE 4366,"GROCERY STORES, SUPERMARKETS",4.00
24/10/2023,10169,SECTION17 PAYMENTS SOUTH,4131,WEST MIDLANDS TRAV,BUS LINES,30.00
24/10/2023,11507,CARE LEAVERS,4121,UBER    TRIP,LIMOUSINES AND TAXICABS,22.79
24/10/2023,10169,SECTION17 PAYMENTS SOUTH,4131,WEST MIDLANDS TRAV,BUS LINES,30.00
24/10/2023,10876,"SEN - OUTREACH, CASEWORK & SUPPORTED",9402,POST OFFICE COUNTER,POSTAL SERVICES-GOVERNMENT ONLY,8.15
24/10/2023,11507,CARE LEAVERS,4784,TFL BUSINESS BOPS WEB,"BRIDGE AND ROAD FEES, TOLLS",17.50
24/10/2023,10169,SECTION17 PAYMENTS SOUTH,4131,WEST MIDLANDS TRAV,BUS LINES,60.00
24/10/2023,11086,OUTDOOR EDUCATION CENTRE,5999,AMZNMKTPLACE,MISCELLANEOUS AND SPECIALTY RETAIL STORES,31.90
24/10/2023,10291,SECTION17 PAYMENTS CENTRAL,4112,TRAINLINE,PASSENGER RAILWAYS,70.30
24/10/2023,11024,DOMESTIC REFUSE,5999,AMZNMKTPLACE,MISCELLANEOUS AND SPECIALTY RETAIL STORES,5.93
24/10/2023,11086,OUTDOOR EDUCATION CENTRE,5999,AMZNMKTPLACE,MISCELLANEOUS AND SPECIALTY RETAIL STORES,8.04
24/10/2023,11024,DOMESTIC REFUSE,5999,AMZNMKTPLACE,MISCELLANEOUS AND SPECIALTY RETAIL STORES,11.20
24/10/2023,10448,RESIDENTIAL - GRAVEL HILL,7523,COMMUNITY HEALTH PARTN,AUTOMOBILE PARKING LOTS AND GARAGES,2.50
24/10/2023,11932,LAC THROUGHCARE TEAM,5411,ADSA STORES LTD 4231,"GROCERY STORES, SUPERMARKETS",3.14
24/10/2023,10541,COVENTRY EXTENDED LEARNING CENTRE,5411,ASDA GROCERIES ONLINE,"GROCERY STORES, SUPERMARKETS",188.69
